[Event "Seniors-LEM-50 Sachsen-Anhalt 2024"]
[Site "Magdeburg"]
[Date "2024.07.03"]
[Round "3.12"]
[White "Ehrich, Dieter"]
[Black "Fabregas, Oliver"]
[Result "0-1"]
[ECO "A21"]
[WhiteElo "1719"]
[BlackElo "1876"]
[Annotator "NA RC"]
[PlyCount "84"]
[EventDate "2024.06.25"]
[EventType "swiss"]
[EventCountry "GER"]
[SourceTitle "playchess.com"]
[Source "ChessBase"]
[SourceQuality "1"]
[TimeControl "40/5400+30:1800+30"]

1. c4 {[%emt 0:00:06]} e5 {[%emt 0:00:10]} 2. Nc3 {[%emt 0:00:32]} Bb4 {[%emt 0:00:06]} 3. Nd5 {[%emt 0:00:18]} Be7 {[%emt 0:00:13]} 4. g3 {[%emt 0:01:09]} Nf6 {[%emt 0:00:10]} 5. Bg2 {[%emt 0:01:34]} O-O {[%emt 0:00:33]} 6. e3 {[%emt 0:02:26] A21: English Opening: 1...e5 2 Nc3.} Nxd5 {[%emt 0:02:03]} 7. cxd5 {[%emt 0:00:39]} d6 {[%emt 0:01:26]} 8. d4 {[%emt 0:02:06]} exd4 {[%emt 0:02:23]} 9. exd4 {[%emt 0:01:29]} Bf6 {[%emt 0:16:21]} 10. Ne2 {[%emt 0:08:37]} b6 {[%emt 0:05:41]} 11. O-O {[%emt 0:02:24]} Ba6 {[%emt 0:00:26]} 12. Be3 {[%emt 0:01:36]} Re8 {[%emt 0:02:05]} 13. Re1 {[%emt 0:01:20]} Bxe2 {[%emt 0:11:23]} 14. Rxe2 {[%emt 0:00:34]} Nd7 {[%emt 0:00:18]} 15. Qd2 {[%emt 0:01:15]} Nf8 {[%emt 0:00:55]} 16. Rae1 {[%emt 0:02:24]} Qd7 {[%emt 0:01:15]} 17. Bg5 {[%emt 0:03:38]} Rxe2 {[%emt 0:05:52]} 18. Rxe2 {[%emt 0:00:21]} Bxg5 {[%emt 0:03:41]} 19. Qxg5 {[%emt 0:00:16]} Re8 {[%emt 0:00:35]} 20. Qd2 {[%emt 0:11:11]} h6 {[%emt 0:01:11]} 21. Qd3 {[%emt 0:05:16]} (21. Be4 $11) 21... Re7 {[%emt 0:06:02]} 22. Kf1 {[%emt 0:08:01]} a5 {[%emt 0:00:48]} 23. b3 {[%emt 0:02:17]} Nh7 {[%emt 0:01:23]} 24. f4 {[%emt 0:05:40]} Nf6 {[%emt 0:01:20]} 25. Rxe7 {[%emt 0:02:59]} Qxe7 {[%emt 0:00:03]} 26. h3 {[%emt 0:01:37]} g6 {[%emt 0:04:07]} 27. Kf2 {[%emt 0:03:45]} Kg7 {[%emt 0:00:23]} 28. g4 {[%emt 0:02:18]} Nd7 {[%emt 0:04:14]} 29. a4 {[%emt 0:04:12]} Qh4+ {[%emt 0:02:23]} 30. Kf1 {[%emt 0:05:31]} (30. Kf3 $15) 30... Qe7 {[%emt 0:03:59]} 31. Kf2 {[%emt 0:04:09]} Nf6 {[%emt 0:02:43]} 32. Bf3 {[%emt 0:03:25]} Nh7 $11 {[%emt 0:02:44]} 33. Bg2 {[%emt 0:01:51]} Qh4+ {[%emt 0:05:25]} 34. Kf1 {[%emt 0:00:22]} h5 {[%emt 0:01:29]} 35. Qf3 {[%emt 0:04:57]} hxg4 {[%emt 0:00:32]} 36. hxg4 {[%emt 0:01:07]} Nf6 {[%emt 0:03:22]} 37. g5 {[%emt 0:05:44]} Nh5 {[%emt 0:00:39]} 38. f5 {[%emt 0:00:15]} Ng3+ {[%emt 0:01:04]} 39. Kg1 {[%emt 0:01:07]} Nxf5 {[%emt 0:00:23]} 40. Bh3 {[%emt 0:00:44]} Qxd4+ {[%emt 0:00:33]} 41. Kh2 {[%emt 0:30:50]} Qd2+ {[%emt 0:31:15]} 42. Kg1 {[%emt 0:00:41]} Qxg5+ {[%emt 0:00:11]} 0-1

[Event "Seniors-LEM-50 Sachsen-Anhalt 2024"]
[Site "Magdeburg"]
[Date "2024.07.03"]
[Round "3.13"]
[White "Giesenberg, Angela"]
[Black "Bachmann, Sylvia"]
[Result "1/2-1/2"]
[ECO "A05"]
[WhiteElo "1827"]
[BlackElo "1768"]
[Annotator "NA RC"]
[PlyCount "66"]
[EventDate "2024.06.25"]
[EventType "swiss"]
[EventCountry "GER"]
[SourceTitle "playchess.com"]
[Source "ChessBase"]
[SourceQuality "1"]
[TimeControl "40/5400+30:1800+30"]

1. Nf3 {[%emt 0:00:03]} Nf6 {[%emt 0:00:32]} 2. d3 {[%emt 0:00:08]} g6 {[%emt 0:00:27]} 3. e4 {[%emt 0:00:26]} d6 {[%emt 0:00:38]} 4. g3 {[%emt 0:00:12]} Bg7 {[%emt 0:00:08]} 5. Bg2 {[%emt 0:00:04]} c5 {[%emt 0:01:49]} 6. Nbd2 {[%emt 0:03:19]} Nc6 {[%emt 0:02:03]} 7. c3 {[%emt 0:00:05]} Bd7 {[%emt 0:01:42]} 8. O-O {[%emt 0:00:49]} O-O {[%emt 0:01:59]} 9. a4 {[%emt 0:01:10]} a5 {[%emt 0:05:18] A05: Réti Opening: 1 Nf3 Nf6.} 10. Re1 {[%emt 0:05:00]} e5 {[%emt 0:05:44]} 11. Nc4 {[%emt 0:04:37]} Qc7 {[%emt 0:03:04]} 12. h3 {[%emt 0:00:26]} Nh5 {[%emt 0:09:34]} 13. Ne3 {[%emt 0:03:47]} Qc8 {[%emt 0:04:55]} 14. Nd5 {[%emt 0:01:38]} Rb8 {[%emt 0:05:28]} 15. Nb6 {[%emt 0:06:20]} Qd8 {[%emt 0:00:02]} 16. Nxd7 {[%emt 0:00:16]} Qxd7 {[%emt 0:00:11]} 17. Nh4 {[%emt 0:09:55]} h6 {[%emt 0:03:03]} 18. Be3 {[%emt 0:01:33]} Kh7 {[%emt 0:00:16]} 19. Kh2 {[%emt 0:01:31]} Ne7 {[%emt 0:07:42]} 20. Qe2 {[%emt 0:07:28]} b5 {[%emt 0:07:58]} 21. axb5 {[%emt 0:02:47]} Qxb5 {[%emt 0:00:18]} 22. Reb1 {[%emt 0:06:28]} Ra8 {[%emt 0:01:20]} (22... Rfd8 $16 {might work better.}) 23. c4 {[%emt 0:03:20]} ({White should try} 23. Nf5 $16) 23... Qb7 {[%emt 0:03:23]} 24. Bf3 {[%emt 0:10:15]} Nf6 {[%emt 0:00:48]} 25. Ra4 {[%emt 0:00:09]} Nc6 {[%emt 0:00:59]} 26. Rba1 {[%emt 0:03:14]} Ra6 {[%emt 0:02:47]} 27. Bg2 {[%emt 0:01:54]} Rb8 {[%emt 0:01:31]} 28. Bc1 {[%emt 0:03:22]} Nd4 {[%emt 0:07:53]} 29. Qd1 {[%emt 0:03:11]} Qb6 {[%emt 0:02:54]} 30. Nf3 {[%emt 0:03:16]} Nc6 {[%emt 0:01:36]} 31. Ne1 {[%emt 0:02:06]} Qa7 $11 {[%emt 0:04:38]} 32. Nc2 {[%emt 0:00:40]} Nd7 {[%emt 0:00:12]} 33. Na3 {[%emt 0:02:42]} Nb6 {[%emt 0:04:24]} 1/2-1/2

[Event "Seniors-LEM-50 Sachsen-Anhalt 2024"]
[Site "Magdeburg"]
[Date "2024.07.03"]
[Round "3.14"]
[White "Gaul, Karl-Heinz"]
[Black "Leib, Britta"]
[Result "0-1"]
[ECO "E61"]
[WhiteElo "1684"]
[BlackElo "1920"]
[Annotator "RC"]
[PlyCount "58"]
[EventDate "2024.06.25"]
[EventType "swiss"]
[EventCountry "GER"]
[SourceTitle "playchess.com"]
[Source "ChessBase"]
[SourceQuality "1"]
[TimeControl "40/5400+30:1800+30"]

1. d4 {[%emt 0:02:22]} Nf6 {[%emt 0:00:29]} 2. c4 {[%emt 0:00:28]} g6 {[%emt 0:00:54]} 3. Nc3 {[%emt 0:00:36]} Bg7 {[%emt 0:00:03]} 4. Bf4 {[%emt 0:00:24]} O-O {[%emt 0:00:36]} 5. Qd2 {[%emt 0:00:03]} Re8 {[%emt 0:06:01]} 6. Nf3 {[%emt 0:02:23]} d6 {[%emt 0:02:31]} 7. Bh6 {[%emt 0:01:03]} Bh8 {[%emt 0:07:21]} 8. h3 {[%emt 0:00:56]} Nbd7 {[%emt 0:02:23]} 9. e4 {[%emt 0:00:27]} e5 {[%emt 0:01:56]} 10. d5 {[%emt 0:01:31]} Nc5 {[%emt 0:07:07]} 11. Ng5 {[%emt 0:00:18]} a5 {[%emt 0:01:25]} 12. Be2 {[%emt 0:03:22]} Bg7 {[%emt 0:03:56]} 13. Bxg7 {[%emt 0:00:54]} Kxg7 {[%emt 0:00:02]} 14. f3 {[%emt 0:06:27]} h6 {[%emt 0:18:16]} 15. h4 {[%emt 0:06:06]} hxg5 {[%emt 0:08:28]} 16. Qxg5 {[%emt 0:03:27]} Nh5 {[%emt 0:03:07]} 17. Kf2 {[%emt 0:00:20]} Bd7 {[%emt 0:02:08]} 18. Qe3 {[%emt 0:00:29]} Rh8 {[%emt 0:02:57]} 19. g3 {[%emt 0:00:44]} Qe7 {[%emt 0:02:45]} 20. Rag1 {[%emt 0:00:09]} Rag8 {[%emt 0:02:38]} 21. f4 {[%emt 0:02:11]} Nf6 {[%emt 0:15:23]} 22. a3 {[%emt 0:06:11]} exf4 {[%emt 0:02:20]} 23. gxf4 {[%emt 1:01:09]} Nfxe4+ {[%emt 0:09:14]} 24. Kf3 {[%emt 0:00:00]} Re8 {[%emt 0:00:00]} 25. Qd4+ {[%emt 0:00:00]} f6 {[%emt 0:00:00]} 26. h5 {[%emt 0:00:00]} Bf5 {[%emt 0:00:00]} 27. Rg5 {[%emt 0:00:00]} Nxc3 {[%emt 0:00:00]} 28. Rxf5 {[%emt 0:00:00]} Qxe2+ {[%emt 0:00:00]} 29. Kg3 {[%emt 0:00:00]} Re3+ {[%emt 0:00:00]} 0-1

[Event "Seniors-LEM-50 Sachsen-Anhalt 2024"]
[Site "Magdeburg"]
[Date "2024.07.03"]
[Round "3.15"]
[White "Ahrens, Gunnar"]
[Black "Wulff, Jens-Peter"]
[Result "1-0"]
[ECO "A03"]
[WhiteElo "1750"]
[BlackElo "1827"]
[Annotator "NA RC"]
[PlyCount "137"]
[EventDate "2024.06.25"]
[EventType "swiss"]
[EventCountry "GER"]
[SourceTitle "playchess.com"]
[Source "ChessBase"]
[SourceQuality "1"]
[TimeControl "40/5400+30:1800+30"]

1. f4 {[%emt 0:00:03]} d5 {[%emt 0:00:32]} 2. Nf3 {[%emt 0:00:07]} Bg4 {[%emt 0:00:45]} 3. e3 {[%emt 0:00:23]} Nf6 {[%emt 0:01:14]} 4. b3 {[%emt 0:00:25]} g6 {[%emt 0:00:29]} 5. Bb2 {[%emt 0:01:40]} Bg7 {[%emt 0:00:07]} 6. Bb5+ {[%emt 0:00:18] A03: Bird's Opening with 1...d5.} c6 {[%emt 0:00:13]} 7. Be2 {[%emt 0:00:06]} Nbd7 {[%emt 0:01:08]} 8. O-O {[%emt 0:00:20]} O-O {[%emt 0:00:24]} 9. d4 {[%emt 0:00:48]} Ne4 {[%emt 0:01:18]} 10. Nbd2 {[%emt 0:00:27]} c5 {[%emt 0:01:01]} 11. c3 {[%emt 0:01:20]} Rc8 {[%emt 0:00:55]} 12. Nxe4 {[%emt 0:04:12]} dxe4 {[%emt 0:00:12]} 13. Ne5 {[%emt 0:00:33]} Bxe2 {[%emt 0:01:23]} 14. Qxe2 {[%emt 0:00:06]} Nf6 {[%emt 0:05:51]} 15. c4 {[%emt 1:27:12]} Ne8 {[%emt 1:22:28]} 16. Rad1 {[%emt 0:00:30]} Bxe5 {[%emt 0:00:30]} 17. dxc5 {[%emt 0:00:00]} Bxb2 {[%emt 0:00:00]} 18. Rxd8 {[%emt 0:00:00]} Rxd8 {[%emt 0:00:00]} 19. Qxb2 {[%emt 0:00:00]} f5 {[%emt 0:00:00]} 20. b4 {[%emt 0:00:00]} Nf6 {[%emt 0:00:00]} 21. h3 {[%emt 0:00:00]} Rd3 {[%emt 0:00:00]} 22. Re1 {[%emt 0:00:00]} Rfd8 {[%emt 0:00:00]} 23. a4 {[%emt 0:00:00]} Rd2 {[%emt 0:00:00]} 24. Qc1 {[%emt 0:00:00]} Nh5 {[%emt 0:00:00]} 25. b5 {[%emt 0:00:00]} Ng3 {[%emt 0:00:00]} 26. c6 {[%emt 0:00:00]} bxc6 {[%emt 0:00:00]} 27. bxc6 {[%emt 0:00:00]} Ne2+ {[%emt 0:00:00]} 28. Rxe2 {[%emt 0:00:00]} Rd1+ {[%emt 0:00:00]} 29. Re1 {[%emt 0:00:00]} Rxc1 {[%emt 0:00:00]} 30. Rxc1 {[%emt 0:00:00]} Rc8 {[%emt 0:00:00]} 31. Kf2 {[%emt 0:00:00]} Rxc6 {[%emt 0:00:00]} 32. Ke2 {[%emt 0:00:00]} Kf7 {[%emt 0:00:00]} 33. Kd2 {[%emt 0:00:00]} Ra6 {[%emt 0:00:00]} 34. c5 {[%emt 0:00:00]} Ke8 {[%emt 0:00:00]} 35. Rc4 {[%emt 0:00:00]} Kd7 {[%emt 0:00:00]} 36. Kc3 {[%emt 0:00:00]} Re6 {[%emt 0:00:00]} 37. Kb4 {[%emt 0:00:00]} Kc6 {[%emt 0:00:00]} 38. a5 {[%emt 0:00:00]} g5 {[%emt 0:00:00]} 39. fxg5 {[%emt 0:00:00]} h6 {[%emt 0:00:00]} 40. gxh6 {[%emt 0:00:00]} Rxh6 {[%emt 0:00:00] [#]} 41. Rc2 $1 {[%emt 0:00:00]} Rh8 {[%emt 0:00:00] [#]} 42. Rf2 $1 {[%emt 0:01:31]} Rh5 {[%emt 0:00:00]} 43. Kc4 {[%emt 0:02:24]} Rg5 $18 {[%emt 0:02:51]} 44. a6 {[%emt 0:03:23]} e6 {[%emt 0:04:37]} 45. Rd2 {[%emt 0:01:16]} Kc7 {[%emt 0:01:47]} 46. Kd4 {[%emt 0:01:36]} Kc6 {[%emt 0:05:08]} 47. Rc2 {[%emt 0:02:18]} ({Much less strong is} 47. Ke5 Rg6 48. Rc2 Rh6 $18) 47... Rh5 {[%emt 0:04:11]} 48. Rb2 {[%emt 0:02:54]} Rh7 {[%emt 0:03:15]} 49. Ke5 {[%emt 0:00:37]} Kxc5 {[%emt 0:01:08]} 50. Rb7 {[%emt 0:00:34]} Rh6 {[%emt 0:01:04]} 51. Rxa7 {[%emt 0:00:34]} Kb6 {[%emt 0:00:13]} 52. Rg7 {[%emt 0:03:10]} Kxa6 {[%emt 0:00:34] [#]} 53. Kf4 $1 {[%emt 0:00:45]} (53. Re7 Kb5) 53... Kb5 {[%emt 0:10:29]} 54. Kg5 {[%emt 0:00:58]} Rh8 {[%emt 0:00:14]} 55. Rg6 {[%emt 0:00:32]} Re8 {[%emt 0:00:32]} 56. h4 {[%emt 0:00:44]} Kc4 {[%emt 0:00:27]} 57. h5 {[%emt 0:00:23]} Kd3 {[%emt 0:00:37]} 58. Kf4 {[%emt 0:02:12]} e5+ {[%emt 0:00:41]} 59. Kxf5 {[%emt 0:00:16]} Kxe3 {[%emt 0:00:15]} 60. Rd6 {[%emt 0:00:26]} Kf2 {[%emt 0:01:41]} 61. Kxe4 {[%emt 0:01:07]} Kxg2 {[%emt 0:12:46]} 62. h6 {[%emt 0:25:20]} Re7 {[%emt 0:00:00]} 63. Rf6 {[%emt 0:00:00]} Kg3 {[%emt 0:00:00]} 64. Rg6+ {[%emt 0:00:00]} Kh4 {[%emt 0:01:30]} 65. Rg7 {[%emt 0:01:30]} Re6 {[%emt 0:00:00]} 66. h7 {[%emt 0:00:00]} Rh6 {[%emt 0:00:00]} 67. Kxe5 {[%emt 0:00:00]} Kh5 {[%emt 0:00:00]} 68. Kf5 {[%emt 0:00:00]} Kh4 {[%emt 0:00:00]} 69. Rg1 {[%emt 0:00:00]} 1-0

[Event "Seniors-LEM-50 Sachsen-Anhalt 2024"]
[Site "Magdeburg"]
[Date "2024.07.03"]
[Round "3.16"]
[White "Remstedt, Ute"]
[Black "Meffert, Claudia"]
[Result "0-1"]
[ECO "D00"]
[WhiteElo "1710"]
[BlackElo "1811"]
[Annotator "NA RC"]
[PlyCount "36"]
[EventDate "2024.06.25"]
[EventType "swiss"]
[EventCountry "GER"]
[SourceTitle "playchess.com"]
[Source "ChessBase"]
[SourceQuality "1"]
[TimeControl "40/5400+30:1800+30"]

1. d4 {[%emt 0:00:03]} d5 {[%emt 0:00:15]} 2. Nf3 {[%emt 0:00:36]} Nf6 {[%emt 0:01:31]} 3. Nc3 {[%emt 0:00:41]} e6 {[%emt 0:02:27]} 4. a3 {[%emt 0:02:21]} Be7 {[%emt 0:00:52]} 5. e3 {[%emt 0:01:04]} O-O {[%emt 0:00:45]} 6. Bd3 {[%emt 0:02:34]} b6 {[%emt 0:00:47]} 7. O-O {[%emt 0:02:20]} Bb7 {[%emt 0:01:53]} 8. Bd2 {[%emt 0:05:10]} Nbd7 {[%emt 0:02:20]} 9. Ne2 {[%emt 0:03:10]} Ne4 {[%emt 0:04:22]} 10. c3 {[%emt 0:04:50]} Ndf6 {[%emt 0:04:44]} 11. Ne5 {[%emt 0:09:31]} Bd6 {[%emt 0:04:25]} 12. f3 {[%emt 0:08:10]} Nxd2 {[%emt 0:01:57]} 13. Qxd2 {[%emt 0:00:10]} c5 {[%emt 0:08:37]} 14. Ng3 {[%emt 0:09:34]} Qc7 {[%emt 0:05:15]} 15. f4 {[%emt 0:07:03]} Ne4 {[%emt 0:08:53]} 16. Qe1 {[%emt 0:04:30]} f6 {[%emt 0:02:37]} 17. Nf3 {[%emt 0:07:33]} e5 {[%emt 0:05:39]} 18. f5 {[%emt 0:12:37]} Nxg3 {[%emt 0:02:05]} 0-1